[Event "SS Manhem Chess Week 2019 Goteborg Open"]
[Site "Molnlycke kulturhus, Biblioteksgatan 2, Molnlycke, Sweden"]
[Date "2019.08.17"]
[Round "6.3"]
[White "Hector, Jonny"]
[Black "Vypkhaniuk, Ihor"]
[Result "1/2-1/2"]
[TimeControl "15 minutes + 5 seconds per move from move one (Round 1 - 4) / 90 minutes + 30 seconds per move from move one (Round 5 - 8)"]
[WhiteTitle "GM"]
[BlackTitle "FM"]
[WhiteFideId "1700090"]
[BlackFideId "14112256"]
[WhiteElo "2493"]
[BlackElo "2405"]

1. e4 {[%clk 01:30:53]} {[%emt 00:00:06]} c5 {[%clk 01:30:27]} {[%emt
00:00:34]} 2. Nf3 {[%clk 01:31:17]} {[%emt 00:00:05]} Nc6 {[%clk 01:30:53]}
{[%emt 00:00:05]} 3. Nc3 {[%clk 01:31:37]} {[%emt 00:00:09]} g6 {[%clk
01:31:17]} {[%emt 00:00:07]} 4. d4 {[%clk 01:31:55]} {[%emt 00:00:12]} cxd4
{[%clk 01:31:42]} {[%emt 00:00:05]} 5. Nxd4 {[%clk 01:32:19]} {[%emt 00:00:05]}
Bg7 {[%clk 01:32:06]} {[%emt 00:00:06]} 6. Be3 {[%clk 01:32:36]} {[%emt
00:00:12]} Nf6 {[%clk 01:32:30]} {[%emt 00:00:07]} 7. Bc4 {[%clk 01:32:25]}
{[%emt 00:00:40]} O-O {[%clk 01:31:58]} {[%emt 00:01:04]} 8. Bb3 {[%clk
01:32:10]} {[%emt 00:00:45]} Qa5 {[%clk 01:32:12]} {[%emt 00:00:17]} 9. O-O
{[%clk 01:30:52]} {[%emt 00:01:47]} d6 {[%clk 01:32:36]} {[%emt 00:00:07]} 10.
h3 {[%clk 01:29:35]} {[%emt 00:01:45]} Bd7 {[%clk 01:32:55]} {[%emt 00:00:13]}
11. f4 {[%clk 01:24:41]} {[%emt 00:05:23]} Nxd4 {[%clk 01:32:49]} {[%emt
00:00:36]} 12. Bxd4 {[%clk 01:24:48]} {[%emt 00:00:21]} Bc6 {[%clk 01:33:10]}
{[%emt 00:00:11]} 13. Qd3 {[%clk 01:22:38]} {[%emt 00:02:40]} Rad8 {[%clk
01:32:18]} {[%emt 00:01:23]} 14. Rad1 {[%clk 01:14:06]} {[%emt 00:09:01]} Nd7
{[%clk 01:30:54]} {[%emt 00:01:55]} 15. Bxg7 {[%clk 01:13:54]} {[%emt
00:00:41]} Kxg7 {[%clk 01:31:21]} {[%emt 00:00:03]} 16. Qd4+ {[%clk 01:03:16]}
{[%emt 00:11:09]} Kg8 {[%clk 01:27:56]} {[%emt 00:03:55]} 17. Qf2 {[%clk
01:02:45]} {[%emt 00:01:01]} Qc5 {[%clk 01:22:52]} {[%emt 00:05:34]} 18. Rd4
{[%clk 01:01:27]} {[%emt 00:01:48]} Rc8 {[%clk 01:08:34]} {[%emt 00:14:49]} 19.
Rfd1 {[%clk 00:58:43]} {[%emt 00:03:13]} Nf6 {[%clk 01:07:02]} {[%emt
00:02:03]} 20. f5 {[%clk 00:54:09]} {[%emt 00:05:04]} Qe5 {[%clk 00:58:05]}
{[%emt 00:09:27]} 21. Re1 {[%clk 00:46:32]} {[%emt 00:08:07]} Rc7 {[%clk
00:41:44]} {[%emt 00:16:52]} 22. fxg6 {[%clk 00:43:00]} {[%emt 00:04:01]} hxg6
{[%clk 00:41:57]} {[%emt 00:00:17]} 23. Nd5 {[%clk 00:42:51]} {[%emt 00:00:39]}
Rd7 {[%clk 00:35:11]} {[%emt 00:07:17]} 24. Nf4 {[%clk 00:40:29]} {[%emt
00:02:51]} Nxe4 {[%clk 00:24:54]} {[%emt 00:10:47]} 25. Qe3 {[%clk 00:39:06]}
{[%emt 00:01:52]} e6 {[%clk 00:23:40]} {[%emt 00:01:46]} 26. Nd3 {[%clk
00:37:32]} {[%emt 00:02:03]} Qf5 {[%clk 00:20:36]} {[%emt 00:03:35]} 27. Rf1
{[%clk 00:36:09]} {[%emt 00:01:52]} e5 {[%clk 00:20:51]} {[%emt 00:00:15]} 28.
Rb4 {[%clk 00:30:55]} {[%emt 00:05:45]} Qh5 {[%clk 00:21:16]} {[%emt 00:00:06]}
29. Rxe4 {[%clk 00:31:04]} {[%emt 00:00:21]} Bxe4 {[%clk 00:21:43]} {[%emt
00:00:03]} 30. Qxe4 {[%clk 00:31:29]} {[%emt 00:00:05]} Kg7 {[%clk 00:21:57]}
{[%emt 00:00:16]} 31. Qd5 {[%clk 00:30:26]} {[%emt 00:01:33]} b6 {[%clk
00:20:58]} {[%emt 00:01:30]} 32. Nf2 {[%clk 00:27:58]} {[%emt 00:02:57]} f5
{[%clk 00:19:41]} {[%emt 00:01:48]} 33. Nd3 {[%clk 00:28:00]} {[%emt 00:00:28]}
Qg5 {[%clk 00:19:18]} {[%emt 00:00:53]} 34. Re1 {[%clk 00:26:40]} {[%emt
00:01:49]} Rfd8 {[%clk 00:19:10]} {[%emt 00:00:39]} 35. Nb4 {[%clk 00:23:35]}
{[%emt 00:03:34]} Qg3 {[%clk 00:16:59]} {[%emt 00:02:41]} 36. Qd2 {[%clk
00:22:10]} {[%emt 00:01:54]} d5 {[%clk 00:15:20]} {[%emt 00:02:10]} 37. Re3
{[%clk 00:16:58]} {[%emt 00:05:41]} Qf4 {[%clk 00:15:32]} {[%emt 00:00:18]} 38.
Nd3 {[%clk 00:16:34]} {[%emt 00:00:54]} Qg5 {[%clk 00:14:15]} {[%emt 00:01:47]}
39. Nxe5 {[%clk 00:16:12]} {[%emt 00:00:50]} Re7 {[%clk 00:12:58]} {[%emt
00:01:49]} 40. Qd4 {[%clk 00:14:21]} {[%emt 00:02:21]} Qf6 {[%clk 00:13:25]}
{[%emt 00:00:03]} 41. Bxd5 {[%clk 00:11:38]} {[%emt 00:03:13]} Rde8 {[%clk
00:10:50]} {[%emt 00:03:05]} 42. Bc6 {[%clk 00:11:57]} {[%emt 00:00:11]} Rc8
{[%clk 00:11:10]} {[%emt 00:00:10]} 43. Kh1 {[%clk 00:09:31]} {[%emt 00:02:55]}
Rxc6 {[%clk 00:08:56]} {[%emt 00:02:45]} 44. Nxc6 {[%clk 00:09:58]} {[%emt
00:00:03]} Rxe3 {[%clk 00:09:20]} {[%emt 00:00:06]} 45. Qxe3 {[%clk 00:10:16]}
{[%emt 00:00:11]} Qxc6 {[%clk 00:09:49]} {[%emt 00:00:02]} 46. c3 {[%clk
00:07:47]} {[%emt 00:02:58]} Qc7 {[%clk 00:10:01]} {[%emt 00:00:19]} 47. b3
{[%clk 00:07:54]} {[%emt 00:00:23]} Kh7 {[%clk 00:10:07]} {[%emt 00:00:24]} 48.
Kg1 {[%clk 00:07:31]} {[%emt 00:00:53]} Qd6 {[%clk 00:10:20]} {[%emt 00:00:17]}
49. Kf2 {[%clk 00:07:43]} {[%emt 00:00:17]} Qd1 {[%clk 00:09:35]} {[%emt
00:01:16]} 50. Qe7+ {[%clk 00:07:46]} {[%emt 00:00:27]} Kg8 {[%clk 00:09:10]}
{[%emt 00:00:55]} 51. Qe2 {[%clk 00:07:54]} {[%emt 00:00:22]} Qc1 {[%clk
00:09:15]} {[%emt 00:00:25]} 52. c4 {[%clk 00:05:30]} {[%emt 00:02:55]} Qf4+
{[%clk 00:09:08]} {[%emt 00:00:36]} 53. Kg1 {[%clk 00:05:58]} {[%emt 00:00:02]}
Qd4+ {[%clk 00:08:49]} {[%emt 00:00:49]} 54. Kh1 {[%clk 00:06:18]} {[%emt
00:00:10]} Kf7 {[%clk 00:08:45]} {[%emt 00:00:35]} 55. Qc2 {[%clk 00:05:18]}
{[%emt 00:01:23]} Kf6 {[%clk 00:04:55]} {[%emt 00:04:27]} 56. Qc1 {[%clk
00:04:16]} {[%emt 00:01:32]} g5 {[%clk 00:04:34]} {[%emt 00:00:51]} 57. b4
{[%clk 00:03:56]} {[%emt 00:00:49]} g4 {[%clk 00:04:56]} {[%emt 00:00:09]} 58.
Qh6+ {[%clk 00:03:35]} {[%emt 00:00:50]} Ke7 {[%clk 00:05:05]} {[%emt
00:00:22]} 59. Qg5+ {[%clk 00:03:37]} {[%emt 00:00:28]} Ke8 {[%clk 00:04:06]}
{[%emt 00:01:29]} 60. Qh5+ {[%clk 00:02:48]} {[%emt 00:01:18]} Ke7 {[%clk
00:03:57]} {[%emt 00:00:41]} 61. Qxf5 {[%clk 00:02:47]} {[%emt 00:00:30]} gxh3
{[%clk 00:03:40]} {[%emt 00:00:47]} 62. Qh7+ {[%clk 00:01:59]} {[%emt
00:01:17]} Kf8 {[%clk 00:02:12]} {[%emt 00:02:00]} 63. Qh6+ {[%clk 00:02:26]}
{[%emt 00:00:02]} Ke7 {[%clk 00:02:25]} {[%emt 00:00:18]} 64. Qg5+ {[%clk
00:02:48]} {[%emt 00:00:07]} Kf8 {[%clk 00:02:16]} {[%emt 00:00:40]} 65. gxh3
{[%clk 00:02:51]} {[%emt 00:00:26]} Qxc4 {[%clk 00:02:11]} {[%emt 00:00:37]} 66.
Qd2 {[%clk 00:02:54]} {[%emt 00:00:27]} Qe4+ {[%clk 00:02:06]} {[%emt
00:00:35]} 67. Kg1 {[%clk 00:03:04]} {[%emt 00:00:20]} Ke8 {[%clk 00:02:03]}
{[%emt 00:00:34]} 68. Kf2 {[%clk 00:02:54]} {[%emt 00:00:37]} Qh4+ {[%clk
00:02:08]} {[%emt 00:00:27]} 69. Kg2 {[%clk 00:03:18]} {[%emt 00:00:06]} Qe4+
{[%clk 00:02:29]} {[%emt 00:00:09]} 70. Kg3 {[%clk 00:03:39]} {[%emt 00:00:08]}
Qg6+ {[%clk 00:02:49]} {[%emt 00:00:11]} 71. Kh2 {[%clk 00:03:57]} {[%emt
00:00:13]} Qe4 {[%clk 00:03:00]} {[%emt 00:00:18]} 72. Kg1 {[%clk 00:03:10]}
{[%emt 00:01:17]} Qb1+ {[%clk 00:02:55]} {[%emt 00:00:36]} 73. Kh2 {[%clk
00:02:44]} {[%emt 00:00:56]} Qe4 {[%clk 00:03:18]} {[%emt 00:00:08]} 74. a4
{[%clk 00:02:59]} {[%emt 00:00:15]} Qe5+ {[%clk 00:02:57]} {[%emt 00:00:51]} 75.
Kg2 {[%clk 00:02:58]} {[%emt 00:00:30]} Qe4+ {[%clk 00:03:22]} {[%emt
00:00:06]} 76. Kg3 {[%clk 00:03:06]} {[%emt 00:00:21]} Qg6+ {[%clk 00:03:25]}
{[%emt 00:00:27]} 77. Kh2 {[%clk 00:03:11]} {[%emt 00:00:25]} Qe4 {[%clk
00:03:47]} {[%emt 00:00:09]} 78. Qc3 {[%clk 00:03:12]} {[%emt 00:00:28]} Qf4+
{[%clk 00:03:30]} {[%emt 00:00:48]} 79. Kg2 {[%clk 00:03:30]} {[%emt 00:00:11]}
a5 {[%clk 00:01:55]} {[%emt 00:02:05]} 80. bxa5 {[%clk 00:02:03]} {[%emt
00:01:57]} Qg5+ {[%clk 00:02:18]} {[%emt 00:00:07]} 81. Kf2 {[%clk 00:02:18]}
{[%emt 00:00:14]} Qf5+ {[%clk 00:01:21]} {[%emt 00:01:28]} 82. Ke2 {[%clk
00:01:53]} {[%emt 00:00:54]} Qh5+ {[%clk 00:01:50]} {[%emt 00:00:01]} 83. Kd2
{[%clk 00:00:58]} {[%emt 00:01:25]} bxa5 {[%clk 00:02:15]} {[%emt 00:00:06]} 84.
Qe3+ {[%clk 00:00:59]} {[%emt 00:00:27]} Kd8 {[%clk 00:02:30]} {[%emt
00:00:16]} 85. Qd4+ {[%clk 00:01:05]} {[%emt 00:00:24]} Kc7 {[%clk 00:02:33]}
{[%emt 00:00:27]} 86. Qg4 {[%clk 00:01:17]} {[%emt 00:00:18]} Qh6+ {[%clk
00:02:00]} {[%emt 00:01:04]} 87. Ke2 {[%clk 00:01:42]} {[%emt 00:00:04]} Qc6
{[%clk 00:01:13]} {[%emt 00:01:16]} 88. Qf4+ {[%clk 00:01:49]} {[%emt
00:00:23]} Kd7 {[%clk 00:00:59]} {[%emt 00:00:46]} 89. Qf5+ {[%clk 00:01:39]}
{[%emt 00:00:39]} Ke7 {[%clk 00:01:09]} {[%emt 00:00:21]} 90. Qg5+ {[%clk
00:01:30]} {[%emt 00:00:38]} Kf7 {[%clk 00:00:42]} {[%emt 00:00:58]} 91. Qf4+
{[%clk 00:01:54]} {[%emt 00:00:05]} Kg8 {[%clk 00:00:45]} {[%emt 00:00:27]} 92.
Kf2 {[%clk 00:01:31]} {[%emt 00:00:53]} Qc2+ {[%clk 00:00:47]} {[%emt
00:00:29]} 93. Kg3 {[%clk 00:01:51]} {[%emt 00:00:10]} Qc3+ {[%clk 00:00:42]}
{[%emt 00:00:36]} 94. Kh4 {[%clk 00:02:17]} {[%emt 00:00:04]} Qb4 {[%clk
00:00:37]} {[%emt 00:00:35]} 95. Kg4 {[%clk 00:02:09]} {[%emt 00:00:37]} Kg7
{[%clk 00:00:48]} {[%emt 00:00:20]} 96. Kf3 {[%clk 00:02:22]} {[%emt 00:00:16]}
Qb3+ {[%clk 00:01:09]} {[%emt 00:00:10]} 97. Kg4 {[%clk 00:02:20]} {[%emt
00:00:30]} Qb4 {[%clk 00:01:30]} {[%emt 00:00:09]} 98. Kf3 {[%clk 00:01:44]}
{[%emt 00:01:06]} Qb3+ {[%clk 00:01:58]} {[%emt 00:00:02]} 99. Kg2 {[%clk
00:02:05]} {[%emt 00:00:09]} Qc2+ {[%clk 00:02:02]} {[%emt 00:00:27]} 100. Kg1
{[%clk 00:02:12]} {[%emt 00:00:20]} Qd1+ {[%clk 00:02:22]} {[%emt 00:00:13]}
101. Kh2 {[%clk 00:02:07]} {[%emt 00:00:34]} Qc2+ {[%clk 00:02:49]} {[%emt
00:00:03]} 102. Kg3 {[%clk 00:02:21]} {[%emt 00:00:15]} Qb3+ {[%clk 00:03:18]}
{[%emt 00:00:02]} 103. Kh4 {[%clk 00:02:39]} {[%emt 00:00:12]} Qb4 {[%clk
00:03:34]} {[%emt 00:00:15]} 104. Qg4+ {[%clk 00:03:02]} {[%emt 00:00:06]} Kh6
{[%clk 00:02:49]} {[%emt 00:01:16]} 105. Kg3 {[%clk 00:03:17]} {[%emt
00:00:14]} Qb3+ {[%clk 00:03:08]} {[%emt 00:00:11]} 106. Kf2 {[%clk 00:03:18]}
{[%emt 00:00:29]} Qc2+ {[%clk 00:03:11]} {[%emt 00:00:27]} 107. Ke1 {[%clk
00:03:25]} {[%emt 00:00:23]} Qc3+ {[%clk 00:03:16]} {[%emt 00:00:26]} 1/2-1/2

[Event "SS Manhem Chess Week 2019 Goteborg Open"]
[Site "Molnlycke kulturhus, Biblioteksgatan 2, Molnlycke, Sweden"]
[Date "2019.08.17"]
[Round "6.4"]
[White "Torngren, Gustav"]
[Black "Golubka, Petro"]
[Result "1/2-1/2"]
[TimeControl "15 minutes + 5 seconds per move from move one (Round 1 - 4) / 90 minutes + 30 seconds per move from move one (Round 5 - 8)"]
[BlackTitle "IM"]
[WhiteFideId "1728970"]
[BlackFideId "14114224"]
[WhiteElo "2061"]
[BlackElo "2479"]

1. c4 {[%clk 01:30:50]} {[%emt 00:00:07]} g6 {[%clk 01:30:32]} {[%emt
00:00:29]} 2. Nc3 {[%clk 01:31:06]} {[%emt 00:00:14]} Bg7 {[%clk 01:30:36]}
{[%emt 00:00:26]} 3. Nf3 {[%clk 01:30:38]} {[%emt 00:00:58]} e5 {[%clk
01:30:37]} {[%emt 00:00:29]} 4. g3 {[%clk 01:30:31]} {[%emt 00:00:36]} Nc6
{[%clk 01:31:02]} {[%emt 00:00:05]} 5. Bg2 {[%clk 01:30:40]} {[%emt 00:00:21]}
Nge7 {[%clk 01:31:27]} {[%emt 00:00:06]} 6. O-O {[%clk 01:30:18]} {[%emt
00:00:51]} d6 {[%clk 01:31:46]} {[%emt 00:00:11]} 7. Rb1 {[%clk 01:30:14]}
{[%emt 00:00:34]} a6 {[%clk 01:31:15]} {[%emt 00:01:01]} 8. d3 {[%clk
01:25:07]} {[%emt 00:05:37]} O-O {[%clk 01:31:29]} {[%emt 00:00:17]} 9. b4
{[%clk 01:22:27]} {[%emt 00:03:09]} h6 {[%clk 01:31:35]} {[%emt 00:00:25]} 10.
a4 {[%clk 01:19:24]} {[%emt 00:03:33]} Be6 {[%clk 01:21:45]} {[%emt 00:10:19]}
11. e3 {[%clk 01:07:38]} {[%emt 00:12:14]} Qd7 {[%clk 01:16:32]} {[%emt
00:05:44]} 12. b5 {[%clk 01:04:40]} {[%emt 00:03:29]} axb5 {[%clk 01:16:14]}
{[%emt 00:00:49]} 13. axb5 {[%clk 01:04:52]} {[%emt 00:00:17]} Na5 {[%clk
01:16:40]} {[%emt 00:00:05]} 14. Nd2 {[%clk 00:58:29]} {[%emt 00:06:51]} e4
{[%clk 01:10:48]} {[%emt 00:06:23]} 15. Qc2 {[%clk 00:52:09]} {[%emt 00:06:48]}
exd3 {[%clk 01:11:05]} {[%emt 00:00:15]} 16. Qxd3 {[%clk 00:52:27]} {[%emt
00:00:12]} Rfd8 {[%clk 01:10:20]} {[%emt 00:01:16]} 17. Nd5 {[%clk 00:49:56]}
{[%emt 00:03:00]} Rac8 {[%clk 00:57:20]} {[%emt 00:13:30]} 18. Bb2 {[%clk
00:48:37]} {[%emt 00:01:49]} Bxd5 {[%clk 00:53:49]} {[%emt 00:04:01]} 19. cxd5
{[%clk 00:43:15]} {[%emt 00:05:51]} b6 {[%clk 00:53:17]} 1/2-1/2

[Event "SS Manhem Chess Week 2019 Goteborg Open"]
[Site "Molnlycke kulturhus, Biblioteksgatan 2, Molnlycke, Sweden"]
[Date "2019.08.17"]
[Round "6.5"]
[White "Ahlander, Bjorn"]
[Black "Nilsson, Joakim"]
[Result "1-0"]
[TimeControl "15 minutes + 5 seconds per move from move one (Round 1 - 4) / 90 minutes + 30 seconds per move from move one (Round 5 - 8)"]
[WhiteTitle "IM"]
[BlackTitle "FM"]
[WhiteFideId "1700251"]
[BlackFideId "1723383"]
[WhiteElo "2390"]
[BlackElo "2319"]

1. d4 {[%clk 01:30:57]} Nf6 {[%clk 01:29:13]} {[%emt 00:01:48]} 2. c4 {[%clk
01:31:22]} {[%emt 00:00:04]} e6 {[%clk 01:29:39]} {[%emt 00:00:05]} 3. Nc3
{[%clk 01:31:47]} {[%emt 00:00:04]} d5 {[%clk 01:30:02]} {[%emt 00:00:06]} 4.
Nf3 {[%clk 01:31:17]} {[%emt 00:01:00]} Be7 {[%clk 01:30:21]} {[%emt 00:00:11]}
5. g3 {[%clk 01:31:30]} {[%emt 00:00:16]} O-O {[%clk 01:30:13]} {[%emt
00:00:39]} 6. Bg2 {[%clk 01:31:58]} {[%emt 00:00:02]} c6 {[%clk 01:29:37]}
{[%emt 00:01:06]} 7. O-O {[%clk 01:30:37]} {[%emt 00:01:50]} b6 {[%clk
01:29:34]} {[%emt 00:00:34]} 8. Bf4 {[%clk 01:29:56]} {[%emt 00:01:10]} Bb7
{[%clk 01:26:33]} {[%emt 00:03:32]} 9. Ne5 {[%clk 01:22:37]} {[%emt 00:07:49]}
Nbd7 {[%clk 01:12:12]} {[%emt 00:14:52]} 10. Qb3 {[%clk 01:23:00]} {[%emt
00:00:06]} Nxe5 {[%clk 01:06:44]} {[%emt 00:06:00]} 11. Bxe5 {[%clk 01:22:58]}
{[%emt 00:00:32]} Rc8 {[%clk 01:03:01]} {[%emt 00:04:13]} 12. Rfd1 {[%clk
01:21:35]} {[%emt 00:01:52]} Nd7 {[%clk 00:52:31]} {[%emt 00:11:00]} 13. Bf4
{[%clk 01:21:42]} {[%emt 00:00:23]} f5 {[%clk 00:51:31]} {[%emt 00:01:30]} 14.
cxd5 {[%clk 01:13:14]} {[%emt 00:08:58]} exd5 {[%clk 00:48:43]} {[%emt
00:03:18]} 15. e4 {[%clk 01:13:40]} {[%emt 00:00:04]} fxe4 {[%clk 00:48:43]}
{[%emt 00:00:31]} 16. Nxe4 {[%clk 01:14:01]} {[%emt 00:00:08]} Kh8 {[%clk
00:31:40]} {[%emt 00:17:33]} 17. Nd6 {[%clk 01:12:59]} {[%emt 00:01:33]} Rb8
{[%clk 00:29:40]} {[%emt 00:02:31]} 18. Nxb7 {[%clk 01:11:45]} {[%emt
00:01:44]} Rxb7 {[%clk 00:28:54]} {[%emt 00:01:17]} 19. Rac1 {[%clk 01:12:09]}
{[%emt 00:00:03]} Bg5 {[%clk 00:25:58]} {[%emt 00:03:28]} 20. Bxg5 {[%clk
01:10:47]} {[%emt 00:01:52]} Qxg5 {[%clk 00:26:20]} {[%emt 00:00:07]} 21. Rxc6
{[%clk 01:11:06]} {[%emt 00:00:11]} Nf6 {[%clk 00:25:15]} {[%emt 00:01:35]} 22.
Rdc1 {[%clk 01:01:25]} {[%emt 00:10:11]} Re7 {[%clk 00:24:47]} {[%emt
00:00:58]} 23. Rc8 {[%clk 00:43:32]} {[%emt 00:18:23]} Ree8 {[%clk 00:24:45]}
{[%emt 00:00:33]} 24. R8c2 {[%clk 00:39:30]} {[%emt 00:04:31]} Qg4 {[%clk
00:19:07]} {[%emt 00:06:07]} 25. Qd3 {[%clk 00:39:16]} {[%emt 00:00:45]} Qh5
{[%clk 00:16:21]} {[%emt 00:03:17]} 26. Qd1 {[%clk 00:36:08]} {[%emt 00:03:38]}
Qf5 {[%clk 00:15:52]} {[%emt 00:00:59]} 27. Re2 {[%clk 00:30:16]} {[%emt
00:06:21]} Ne4 {[%clk 00:09:50]} {[%emt 00:06:31]} 28. Rcc2 {[%clk 00:23:38]}
{[%emt 00:07:09]} Ng5 {[%clk 00:08:26]} {[%emt 00:01:55]} 29. Qe1 {[%clk
00:20:52]} {[%emt 00:03:15]} Re4 {[%clk 00:08:00]} {[%emt 00:00:56]} 30. f4
{[%clk 00:17:28]} {[%emt 00:03:53]} Rxe2 {[%clk 00:03:35]} {[%emt 00:04:57]} 31.
Rxe2 {[%clk 00:17:54]} {[%emt 00:00:03]} Ne4 {[%clk 00:03:35]} {[%emt
00:00:31]} 32. Bxe4 {[%clk 00:17:48]} {[%emt 00:00:36]} dxe4 {[%clk 00:04:03]}
{[%emt 00:00:02]} 33. Rxe4 {[%clk 00:18:11]} {[%emt 00:00:07]} Qd5 {[%clk
00:04:27]} {[%emt 00:00:06]} 34. b3 {[%clk 00:16:29]} {[%emt 00:02:12]} h5
{[%clk 00:04:38]} {[%emt 00:00:20]} 35. Qe3 {[%clk 00:16:33]} {[%emt 00:00:25]}
Qf5 {[%clk 00:04:06]} {[%emt 00:01:03]} 36. Re5 {[%clk 00:11:13]} {[%emt
00:05:49]} Qg4 {[%clk 00:03:56]} {[%emt 00:00:39]} 37. Qe2 {[%clk 00:08:31]}
{[%emt 00:03:13]} Rxf4 {[%clk 00:03:48]} {[%emt 00:00:39]} 38. Rxh5+ {[%clk
00:08:41]} {[%emt 00:00:19]} Kg8 {[%clk 00:04:10]} {[%emt 00:00:08]} 39. Qxg4
{[%clk 00:08:45]} {[%emt 00:00:25]} Rxg4 {[%clk 00:04:29]} {[%emt 00:00:11]} 40.
Rd5 {[%clk 00:09:02]} {[%emt 00:00:13]} Rg6 {[%clk 00:04:41]} {[%emt 00:00:19]}
41. Rd8+ {[%clk 00:08:52]} {[%emt 00:00:40]} Kh7 {[%clk 00:05:08]} {[%emt
00:00:02]} 42. d5 {[%clk 00:07:26]} {[%emt 00:01:56]} Rg4 {[%clk 00:05:34]}
{[%emt 00:00:04]} 43. Kf2 {[%clk 00:06:44]} {[%emt 00:01:12]} Rd4 {[%clk
00:06:01]} {[%emt 00:00:04]} 44. Ke3 {[%clk 00:07:07]} {[%emt 00:00:06]} Rd1
{[%clk 00:06:20]} {[%emt 00:00:12]} 45. h4 {[%clk 00:05:27]} {[%emt 00:02:09]}
Kg6 {[%clk 00:06:44]} {[%emt 00:00:07]} 46. g4 {[%clk 00:05:03]} {[%emt
00:00:53]} Kf6 {[%clk 00:07:09]} {[%emt 00:00:05]} 47. Rd7 {[%clk 00:05:21]}
{[%emt 00:00:12]} a5 {[%clk 00:07:27]} {[%emt 00:00:12]} 48. Rd6+ {[%clk
00:04:37]} {[%emt 00:01:13]} Ke5 {[%clk 00:07:55]} {[%emt 00:00:03]} 49. Rxb6
{[%clk 00:04:23]} {[%emt 00:00:44]} Rxd5 {[%clk 00:08:15]} {[%emt 00:00:10]} 50.
a4 {[%clk 00:04:34]} {[%emt 00:00:19]} 1-0

[Event "SS Manhem Chess Week 2019 Goteborg Open"]
[Site "Molnlycke kulturhus, Biblioteksgatan 2, Molnlycke, Sweden"]
[Date "2019.08.17"]
[Round "6.6"]
[White "Kockum, Anton Frisk"]
[Black "Ask, Josef"]
[Result "1-0"]
[TimeControl "15 minutes + 5 seconds per move from move one (Round 1 - 4) / 90 minutes + 30 seconds per move from move one (Round 5 - 8)"]
[WhiteTitle "FM"]
[BlackTitle "FM"]
[WhiteFideId "1709143"]
[BlackFideId "1704583"]
[WhiteElo "2367"]
[BlackElo "2136"]

1. d4 {[%clk 01:30:57]} {[%emt 00:00:03]} Nf6 {[%clk 01:30:44]} {[%emt
00:00:16]} 2. c4 {[%clk 01:31:21]} {[%emt 00:00:07]} d6 {[%clk 01:30:53]}
{[%emt 00:00:20]} 3. Nf3 {[%clk 01:31:07]} {[%emt 00:00:44]} c6 {[%clk
01:31:00]} {[%emt 00:00:24]} 4. Nc3 {[%clk 01:31:26]} {[%emt 00:00:11]} Nbd7
{[%clk 01:31:11]} {[%emt 00:00:19]} 5. Bg5 {[%clk 01:30:55]} {[%emt 00:01:01]}
h6 {[%clk 01:30:45]} {[%emt 00:00:56]} 6. Bh4 {[%clk 01:31:09]} {[%emt
00:00:16]} g5 {[%clk 01:30:33]} {[%emt 00:00:42]} 7. Bg3 {[%clk 01:31:28]}
{[%emt 00:00:11]} Nh5 {[%clk 01:30:45]} {[%emt 00:00:18]} 8. e3 {[%clk
01:30:08]} {[%emt 00:01:51]} Nxg3 {[%clk 01:29:38]} {[%emt 00:01:37]} 9. hxg3
{[%clk 01:30:14]} {[%emt 00:00:24]} e5 {[%clk 01:28:56]} {[%emt 00:01:12]} 10.
Qc2 {[%clk 01:25:52]} {[%emt 00:04:53]} Be7 {[%clk 01:23:53]} {[%emt 00:05:33]}
11. O-O-O {[%clk 01:23:12]} {[%emt 00:03:10]} Qa5 {[%clk 01:20:22]} {[%emt
00:04:00]} 12. Kb1 {[%clk 01:19:11]} {[%emt 00:04:31]} a6 {[%clk 01:12:03]}
{[%emt 00:08:49]} 13. Ne4 {[%clk 01:02:21]} {[%emt 00:17:20]} g4 {[%clk
01:09:38]} {[%emt 00:02:56]} 14. Nh4 {[%clk 01:01:39]} {[%emt 00:01:12]} Nb6
{[%clk 00:56:32]} {[%emt 00:13:36]} 15. c5 {[%clk 00:40:23]} {[%emt 00:21:47]}
Be6 {[%clk 00:50:47]} {[%emt 00:06:14]} 16. cxb6 {[%clk 00:34:10]} {[%emt
00:06:44]} Qxa2+ {[%clk 00:48:56]} {[%emt 00:02:21]} 17. Kc1 {[%clk 00:34:32]}
{[%emt 00:00:08]} Bb3 {[%clk 00:39:55]} {[%emt 00:09:31]} 18. Nc3 {[%clk
00:33:58]} {[%emt 00:01:04]} Bxc2 {[%clk 00:39:18]} {[%emt 00:01:08]} 19. Nxa2
{[%clk 00:34:22]} {[%emt 00:00:06]} Bxd1 {[%clk 00:39:35]} {[%emt 00:00:13]} 20.
Kxd1 {[%clk 00:34:50]} {[%emt 00:00:01]} exd4 {[%clk 00:39:24]} {[%emt
00:00:41]} 21. exd4 {[%clk 00:34:58]} {[%emt 00:00:21]} Bf6 {[%clk 00:37:50]}
{[%emt 00:02:04]} 22. Nf5 {[%clk 00:34:53]} {[%emt 00:00:35]} O-O-O {[%clk
00:37:16]} {[%emt 00:01:04]} 23. Nc3 {[%clk 00:34:22]} {[%emt 00:01:01]} d5
{[%clk 00:37:12]} {[%emt 00:00:34]} 24. Na4 {[%clk 00:33:50]} {[%emt 00:01:02]}
h5 {[%clk 00:31:39]} {[%emt 00:06:03]} 25. Nc5 {[%clk 00:32:27]} {[%emt
00:01:53]} Kb8 {[%clk 00:26:41]} {[%emt 00:05:28]} 26. Bd3 {[%clk 00:31:43]}
{[%emt 00:01:14]} Ka8 {[%clk 00:25:20]} {[%emt 00:01:51]} 27. Kc2 {[%clk
00:31:40]} {[%emt 00:00:33]} Kb8 {[%clk 00:23:45]} {[%emt 00:02:06]} 28. Kc3
{[%clk 00:31:50]} {[%emt 00:00:19]} Bg5 {[%clk 00:23:16]} {[%emt 00:00:59]} 29.
Ra1 {[%clk 00:25:45]} {[%emt 00:06:36]} Bf6 {[%clk 00:22:05]} {[%emt 00:01:41]}
30. Bxa6 {[%clk 00:24:12]} {[%emt 00:02:02]} bxa6 {[%clk 00:21:24]} {[%emt
00:01:12]} 31. Rxa6 {[%clk 00:24:25]} {[%emt 00:00:17]} h4 {[%clk 00:19:57]}
{[%emt 00:01:57]} 32. Ra7 {[%clk 00:24:37]} {[%emt 00:00:17]} 1-0